bitfinex/quotes_SOLUSD_20240616
["timestamp","ask_amount","ask_price","bid_price","bid_amount"]
[1718571406910,5.3,148.94,148.88,0.8401623]
[1718571407097,5.3,148.94,148.88,6.1401623]
[1718571409291,5.3,148.94,148.89,5.47]
[1718571412275,7.7842,148.94,148.89,5.47]
[1718571413392,30.1407,148.95,148.89,5.47]
[1718571413590,12.7522,148.95,148.89,5.47]
[1718571414298,20.2043,148.95,148.89,5.47]
[1718571415586,2.4842,148.94,148.89,5.47]
[1718571415909,30.1405,148.95,148.89,5.47]
[1718571417512,7.7841,148.95,148.89,5.47]
[1718571417681,12.7522,148.95,148.89,5.47]
[1718571418312,5.3,148.94,148.89,5.47]
[1718571421510,7.4522,148.95,148.89,5.47]
[1718571421682,7.4512,148.97,148.91,5.3]
[1718571421888,20.2023,148.97,148.91,5.3]
[1718571422099,14.44716054,148.96,148.91,5.3]
[1718571422486,9.47946054,148.96,148.91,5.3]
[1718571423009,14.44726054,148.96,148.91,5.3]
[1718571423207,7.4521,148.95,148.9,5.3]
[1718571423391,12.7521,148.95,148.9,5.3]
[1718571423593,29.35106054,148.96,148.9,5.3]
[1718571423922,5.3,148.95,148.9,5.3]
[1718571424704,6.99556054,148.96,148.9,5.3]
[1718571425085,5.3,148.95,148.9,5.3]
[1718571429296,7.7839,148.96,148.9,5.3]
[1718571429615,5.3,148.96,148.9,5.3]
[1718571429812,7.7839,148.96,148.9,5.3]
[1718571430004,5.3,148.96,148.9,5.3]
[1718571430315,7.7838,148.96,148.9,5.3]
[1718571430621,5.3,148.96,148.9,5.3]
[1718571431296,7.7838,148.96,148.9,5.3]
[1718571431691,2.4838,148.96,148.9,5.3]
[1718571431892,7.7838,148.96,148.9,5.3]
[1718571432292,5.3,148.96,148.9,5.3]
[1718571432721,7.7839,148.96,148.9,5.3]
[1718571433896,2.4836,148.98,148.9,5.3]
[1718571434095,6.99533576,148.99,148.92,16.7426]
[1718571434327,6.99533576,148.99,148.93,5.81]
[1718571434494,5.3,148.99,148.93,5.81]
[1718571434820,7.7834,148.99,148.93,5.81]
[1718571435003,5.3,148.99,148.93,5.81]
[1718571435206,7.7834,148.99,148.93,5.81]
[1718571436324,2.4834,148.99,148.93,5.81]
[1718571436529,2.4833,148.99,148.93,5.81]
[1718571436733,7.7833,148.99,148.93,5.81]
[1718571437411,12.75,148.99,148.93,5.81]
[1718571438114,7.45,148.99,148.93,5.81]
[1718571438293,12.75,148.99,148.93,5.81]
[1718571438708,7.7833,148.99,148.93,5.81]
[1718571440299,12.7501,148.99,148.93,5.81]
[1718571441225,7.7833,148.99,148.93,5.81]
[1718571441906,12.75,148.99,148.93,5.81]
[1718571442094,2.4836,148.98,148.93,0.51]
[1718571443023,7.7836,148.98,148.93,0.51]
[1718571445326,100.0,149.01,148.92,16.5726]
[1718571445623,100.0,149.01,148.88,6.9921623]
[1718571445624,7.784,148.95,148.89,5.3]
[1718571445797,5.3,148.95,148.9,0.17]
[1718571446601,5.3,148.95,148.9,0.34]
[1718571447793,5.3,148.96,148.9,5.64]
[1718571450125,5.3,148.95,148.9,5.64]
[1718571453331,5.3,148.96,148.9,5.64]
[1718571453935,5.3,148.95,148.9,5.64]
[1718571454454,5.3,148.95,148.89,0.17]
[1718571454633,5.3,148.95,148.89,0.51]
[1718571454839,5.3,148.95,148.89,5.81]
[1718571455133,5.3,148.95,148.89,0.51]
[1718571455429,5.3,148.94,148.88,28.8647623]
[1718571456427,5.3,148.95,148.89,5.3]
[1718571458929,5.3,148.94,148.88,28.8647623]
[1718571459437,5.3,148.94,148.88,23.5647623]
[1718571459647,5.3,148.94,148.88,28.8647623]
[1718571463948,5.3,148.93,148.88,28.8647623]
[1718571465832,5.3,148.95,148.89,5.3]
[1718571466041,5.3,148.94,148.88,28.8647623]
[1718571468850,5.3,148.94,148.88,28.3647623]
[1718571469024,5.3,148.94,148.88,23.0647623]
[1718571469224,5.3,148.94,148.89,5.3]
[1718571469624,2.4839,148.96,148.89,5.3]
[1718571469830,5.3,148.95,148.89,5.3]
[1718571470739,7.784,148.95,148.89,5.3]
[1718571470939,5.3,148.95,148.89,5.3]
[1718571473432,7.784,148.95,148.89,5.3]
[1718571473766,5.3,148.95,148.89,5.3]
[1718571474056,7.4514,148.97,148.9,0.34]
[1718571474356,5.3,148.96,148.9,5.64]
[1718571475235,2.4837,148.97,148.9,5.64]
[1718571475433,5.3,148.96,148.9,5.64]
[1718571476546,7.7839,148.96,148.9,5.64]
[1718571477831,7.7838,148.96,148.9,5.64]
[1718571478236,9.47985379,148.98,148.91,0.17]
[1718571478460,20.2015,148.98,148.92,5.3]
[1718571478654,2.4837,148.97,148.92,5.3]
[1718571478855,7.7837,148.97,148.91,5.64]
[1718571479058,7.7837,148.97,148.92,0.34]
[1718571479244,5.3,148.97,148.92,0.34]
[1718571479635,22.3522,148.98,148.92,0.34]
[1718571479851,5.3,148.97,148.92,0.34]
[1718571480965,7.7836,148.98,148.92,5.64]
[1718571481185,5.3,148.98,148.92,22.2992]
[1718571482455,24.8341,148.99,148.92,22.2992]
[1718571482640,5.3,148.98,148.92,22.2992]
[1718571483471,12.7507,148.98,148.92,22.2992]
[1718571484370,12.7512,148.97,148.92,16.6592]
[1718571485273,7.7837,148.97,148.92,16.6592]
[1718571486078,24.8361,148.98,148.92,16.6592]
[1718571486246,5.3,148.97,148.92,16.6592]
[1718571486454,5.3,148.96,148.92,16.6592]
[1718571487269,24.8361,148.98,148.92,16.6592]
[1718571487472,5.3,148.96,148.92,16.6592]
[1718571488241,2.4836,148.98,148.92,16.6592]
[1718571488461,5.3,148.97,148.92,16.6592]
[1718571503089,2.4836,148.98,148.92,16.6592]
[1718571503388,5.3,148.97,148.92,16.6592]
[1718571505994,5.3,148.98,148.92,21.9592]
[1718571506379,7.7835,148.98,148.92,21.9592]
[1718571508689,12.7506,148.98,148.92,16.6592]
[1718571509592,20.2012,148.98,148.92,16.6592]
[1718571509893,12.7506,148.98,148.92,16.6592]
[1718571510889,5.3,148.96,148.92,16.6592]
[1718571511201,5.3,148.95,148.92,16.6592]
[1718571511572,7.7841,148.95,148.92,16.6592]
[1718571511781,12.7522,148.95,148.88,22.1014623]
[1718571512092,5.3,148.93,148.88,22.1014623]
[1718571513197,7.4522,148.95,148.88,22.1014623]
[1718571513369,5.3,148.93,148.88,22.1014623]
[1718571514598,5.3,148.93,148.88,15.9494623]
[1718571514599,2.4844,148.93,148.88,15.9494623]
[1718571514807,5.3,148.9,148.88,0.3401623]
[1718571517474,5.3,148.91,148.88,0.3401623]
[1718571520695,7.7847,148.91,148.88,0.3401623]
[1718571521580,5.3,148.91,148.88,0.3401623]
[1718571522506,7.7847,148.91,148.88,0.3401623]
[1718571522801,7.7845,148.92,148.88,0.3401623]
[1718571524177,7.7847,148.91,148.88,0.3401623]
[1718571524490,5.3,148.9,148.88,0.3401623]
[1718571524703,20.2083,148.91,148.88,0.3401623]
[1718571525108,12.7542,148.91,148.88,0.3401623]
[1718571526304,2.4849,148.9,148.88,0.3401623]
[1718571526613,7.7849,148.9,148.88,0.3401623]
[1718571526988,5.3,148.9,148.88,0.3401623]
[1718571528905,5.3,148.91,148.88,0.3401623]
[1718571530900,7.7847,148.91,148.88,0.3401623]
[1718571532611,12.7541,148.91,148.88,0.3401623]
[1718571533113,7.7847,148.91,148.88,0.3401623]
[1718571534526,22.3614,148.92,148.88,0.3401623]
[1718571534719,7.7847,148.91,148.88,0.3401623]
[1718571535016,12.7541,148.91,148.88,0.3401623]
[1718571535916,5.3,148.9,148.88,0.3401623]
[1718571537031,7.7849,148.9,148.88,0.3401623]
[1718571537221,15.2401,148.89,148.88,0.3401623]
[1718571537422,30.1504,148.89,148.88,0.3401623]
[1718571538317,12.7551,148.89,148.88,0.3401623]
[1718571539023,20.2102,148.89,148.88,0.3401623]
[1718571539195,7.785,148.89,148.88,0.3401623]
[1718571539916,20.2102,148.89,148.88,0.3401623]
[1718571540107,12.7551,148.89,148.88,0.3401623]
[1718571540508,7.785,148.89,148.88,0.3401623]
[1718571541925,5.3,148.89,148.88,0.3401623]
[1718571542097,9.4684328,148.91,148.88,0.3401623]
[1718571542301,5.3,148.9,148.88,0.3401623]
[1718571542905,6.98439582,148.93,148.88,0.3401623]
[1718571543102,5.3,148.92,148.88,0.3401623]
[1718571544725,12.7536,148.92,148.88,0.3401623]
[1718571544905,20.2072,148.92,148.88,0.3401623]
[1718571545831,5.3,148.91,148.88,0.3401623]
[1718571546728,7.7847,148.91,148.88,0.3401623]
[1718571547618,12.7542,148.91,148.88,0.3401623]
[1718571548500,7.7848,148.91,148.88,0.3401623]
[1718571548923,5.3,148.91,148.88,0.3401623]
[1718571551531,2.4847,148.92,148.88,0.3401623]
[1718571551532,7.7847,148.92,148.88,0.3401623]
[1718571551718,12.7538,148.92,148.88,0.3401623]
[1718571551919,12.7541,148.91,148.88,0.3401623]
[1718571553633,5.3,148.91,148.88,0.3401623]
[1718571554022,12.7539,148.92,148.88,0.3401623]
[1718571554221,5.3,148.92,148.88,0.3401623]
[1718571555351,9.9371,148.94,148.88,0.3401623]
[1718571555352,7.4528,148.94,148.88,0.3401623]
[1718571555559,7.7844,148.93,148.88,0.3401623]
[1718571555717,5.3,148.92,148.88,0.3401623]
[1718571555918,7.7844,148.93,148.88,0.3401623]
[1718571557440,20.2063,148.93,148.88,0.3401623]
[1718571559123,12.7532,148.93,148.88,0.3401623]
[1718571559954,2.4844,148.93,148.88,5.6401623]
[1718571560121,22.3566,148.95,148.89,21.2026]
[1718571560324,2.4842,148.94,148.89,21.2026]
[1718571561627,7.4526,148.94,148.89,21.2026]
[1718571563048,2.4842,148.94,148.89,21.2026]
[1718571563361,7.4526,148.94,148.89,21.2026]
[1718571564925,14.9053,148.94,148.89,21.2026]
[1718571565127,2.4843,148.93,148.89,21.2026]
[1718571566041,24.8423,148.94,148.89,21.2026]
[1718571567069,7.4527,148.94,148.89,21.2026]
[1718571568134,20.2054,148.94,148.89,15.9026]
[1718571568331,17.7211,148.94,148.89,15.9026]
[1718571568547,30.1424,148.94,148.89,15.9026]
[1718571569049,12.7527,148.94,148.89,15.9026]
[1718571569767,6.98810687,148.98,148.88,0.3401623]
[1718571569768,12.7544,148.91,148.88,0.3401623]
[1718571570067,20.2085,148.91,148.88,0.3401623]
[1718571570276,12.7544,148.91,148.88,0.3401623]
[1718571570430,7.7848,148.91,148.88,0.3401623]
[1718571570626,5.3,148.91,148.88,0.3401623]
[1718571570867,7.7847,148.91,148.88,0.3401623]
[1718571571243,5.3,148.91,148.88,0.3401623]
[1718571571470,7.7846,148.92,148.88,0.3401623]
[1718571572341,7.4533,148.93,148.88,0.3401623]
[1718571572866,14.9065,148.93,148.88,0.3401623]
[1718571573359,7.4533,148.93,148.88,0.3401623]
[1718571576161,2.4842,148.94,148.88,5.6401623]
[1718571576367,7.7842,148.94,148.88,5.6401623]
[1718571576664,12.7526,148.94,148.88,5.6401623]
[1718571576855,20.2053,148.94,148.88,5.6401623]
[1718571577063,5.3,148.93,148.88,5.6401623]
[1718571577746,7.7844,148.93,148.88,5.6401623]
[1718571577948,12.7532,148.93,148.88,0.3401623]
[1718571579053,2.4844,148.93,148.88,0.3401623]
[1718571579257,5.3,148.93,148.88,0.3401623]
[1718571579659,29.35068642,148.96,148.89,5.3]
[1718571579946,25.3,148.95,148.89,5.3]
[1718571580148,27.784,148.95,148.89,5.3]
[1718571580647,32.7521,148.95,148.89,5.3]
[1718571581362,40.2042,148.95,148.89,5.3]
[1718571581776,27.4521,148.95,148.89,5.3]
[1718571582095,27.784,148.95,148.89,5.3]
[1718571582742,32.7521,148.95,148.89,5.3]
[1718571583374,40.2042,148.95,148.89,5.3]
[1718571583555,20.0,148.95,148.89,5.3]
[1718571583882,32.7521,148.95,148.9,16.23]
[1718571589684,27.4521,148.95,148.9,16.23]
[1718571589882,32.7521,148.95,148.9,16.23]
[1718571590185,40.2042,148.95,148.9,16.23]
[1718571590855,7.4527,148.94,148.9,16.23]
[1718571591080,27.6583,148.94,148.9,16.23]
[1718571591392,2.4844,148.93,148.9,16.23]
[1718571594686,2.4844,148.93,148.88,0.3401623]
[1718571594886,2.4844,148.93,148.88,5.6401623]
[1718571595087,7.7844,148.93,148.88,0.3401623]
[1718571596198,5.3,148.93,148.88,0.3401623]
[1718571598194,7.7844,148.93,148.88,0.3401623]
[1718571598697,5.3,148.93,148.88,0.3401623]
[1718571600173,7.4528,148.94,148.88,0.3401623]
[1718571600499,5.3,148.93,148.88,0.3401623]
[1718571601668,2.4846,148.92,148.88,0.3401623]
[1718571601891,7.7846,148.92,148.88,0.3401623]
[1718571602871,10.2694,148.91,148.88,0.3401623]
[1718571603071,7.7848,148.91,148.88,0.3401623]
[1718571603392,12.7542,148.91,148.88,0.3401623]
[1718571603570,20.2084,148.91,148.88,0.3401623]
[1718571604297,2.4849,148.9,148.88,0.3401623]
[1718571604465,7.7849,148.9,148.88,0.3401623]
[1718571604868,12.7547,148.9,148.88,0.3401623]
[1718571605475,7.7849,148.9,148.88,0.3401623]
[1718571607381,17.7245,148.9,148.88,0.3401623]
[1718571607578,20.2095,148.9,148.88,0.3401623]
[1718571608101,12.7548,148.9,148.88,0.3401623]
[1718571608488,30.1504,148.89,148.88,0.3401623]
[1718571608898,20.2102,148.89,148.88,0.3401623]
[1718571609407,12.7551,148.89,148.88,0.3401623]
[1718571609585,7.785,148.89,148.88,0.3401623]
[1718571610392,12.7551,148.89,148.88,0.3401623]
[1718571610595,30.1504,148.89,148.88,0.3401623]
[1718571611386,5.3,148.89,148.88,0.3401623]
[1718571611683,12.30989011,148.94,148.88,0.3401623]
[1718571611877,27.7841,148.95,148.89,5.3]
[1718571612113,5.3,148.95,148.89,5.3]
[1718571612488,7.784,148.95,148.89,5.3]
[1718571614185,12.7521,148.95,148.89,5.3]
[1718571614682,2.4842,148.94,148.89,5.3]
[1718571614908,30.1406,148.95,148.89,5.3]
[1718571615082,5.3,148.94,148.89,5.3]
[1718571615707,7.7842,148.94,148.89,5.3]
[1718571616114,5.3,148.94,148.89,5.3]
[1718571616480,7.7842,148.94,148.89,5.3]
[1718571617711,4.9679,148.96,148.89,5.3]
[1718571618017,20.2035,148.96,148.9,5.3]
[1718571618189,12.7519,148.96,148.9,5.3]
[1718571619015,2.484,148.95,148.9,5.3]
[1718571619181,12.7521,148.95,148.89,6.4296]
[1718571619381,12.7521,148.95,148.89,11.7296]
[1718571619603,5.3,148.95,148.89,11.7296]
[1718571620088,7.784,148.95,148.89,11.7296]
[1718571621702,5.3,148.95,148.89,11.7296]
[1718571622894,5.3,148.95,148.89,6.4296]
[1718571623100,7.784,148.95,148.9,5.3]
[1718571623300,7.784,148.95,148.89,6.4296]
[1718571623518,5.3,148.95,148.9,5.3]
[1718571623717,7.784,148.95,148.9,5.3]
[1718571624231,5.3,148.95,148.9,5.3]
[1718571625024,7.784,148.96,148.9,5.3]
[1718571625520,12.7518,148.96,148.9,5.3]
[1718571625716,7.784,148.96,148.9,5.3]
[1718571626129,12.7517,148.96,148.9,5.3]
[1718571627427,7.784,148.96,148.89,6.4296]
[1718571627592,7.784,148.96,148.9,5.3]
[1718571628614,12.7517,148.96,148.9,5.3]
[1718571629021,2.4842,148.94,148.88,0.5101623]
[1718571629323,30.1408,148.95,148.88,0.3401623]
[1718571629527,12.7522,148.95,148.89,5.3]
[1718571630334,7.7841,148.95,148.89,5.3]
[1718571630921,12.7522,148.95,148.89,5.3]
[1718571631737,12.7522,148.95,148.88,0.3401623]
[1718571631902,12.7522,148.95,148.89,5.3]
[1718571632103,12.7522,148.95,148.9,5.3]
[1718571632104,5.3,148.95,148.9,5.3]
[1718571632298,12.7519,148.96,148.9,5.3]
[1718571632513,7.784,148.96,148.9,5.3]
[1718571632717,27.6551,148.96,148.88,0.3401623]
[1718571632915,2.484,148.95,148.9,5.3]
[1718571633104,2.484,148.95,148.88,0.3401623]
[1718571633506,7.784,148.95,148.89,5.3]
[1718571634132,12.7521,148.95,148.89,5.3]
[1718571634503,7.784,148.95,148.89,5.3]
[1718571636232,7.4519,148.96,148.9,5.3]
[1718571636402,2.4842,148.94,148.88,0.3401623]
[1718571636599,30.1393,148.96,148.9,5.3]
[1718571636799,2.484,148.95,148.9,5.3]
[1718571637241,30.1393,148.96,148.9,5.3]
[1718571637837,12.7518,148.96,148.9,5.3]
[1718571638334,7.784,148.96,148.9,5.3]
[1718571638525,12.7518,148.96,148.9,5.3]
[1718571638722,2.484,148.95,148.88,0.3401623]
[1718571639035,12.7517,148.96,148.9,5.3]
[1718571639204,2.484,148.95,148.89,0.17]
[1718571639405,14.9042,148.95,148.89,0.17]
[1718571639652,2.4842,148.94,148.9,5.3]
[1718571639820,7.4522,148.95,148.9,5.3]
[1718571640213,12.7526,148.94,148.88,0.3401623]
[1718571640410,2.4844,148.93,148.88,0.3401623]
[1718571640615,27.6581,148.94,148.88,5.6401623]
[1718571640616,7.7843,148.94,148.88,5.6401623]
[1718571640843,12.7527,148.94,148.88,5.6401623]
[1718571641053,2.4844,148.93,148.88,5.6401623]
[1718571641509,2.4843,148.93,148.88,5.6401623]
[1718571641811,7.7843,148.94,148.88,5.6401623]
[1718571642210,17.7213,148.94,148.88,0.3401623]
[1718571642419,12.7528,148.94,148.88,5.6401623]
[1718571642814,5.3,148.94,148.88,5.6401623]
[1718571643216,7.7842,148.94,148.88,5.6401623]
[1718571643634,5.3,148.94,148.88,5.6401623]
[1718571644908,7.7841,148.95,148.89,5.3]
[1718571645624,12.7522,148.95,148.89,5.3]
[1718571646533,20.2043,148.95,148.89,5.3]
[1718571647620,12.7522,148.95,148.89,5.3]
[1718571649674,20.2043,148.95,148.89,5.3]
[1718571651849,12.7522,148.95,148.89,5.3]
[1718571653330,5.3,148.94,148.88,5.6401623]
[1718571654031,20.2043,148.95,148.89,5.3]
[1718571654556,12.7522,148.95,148.89,5.3]
[1718571659563,12.7522,148.95,148.88,0.3401623]
[1718571659742,12.7522,148.95,148.89,5.3]
[1718571662462,5.3,148.93,148.88,0.3401623]
[1718571662632,22.357,148.95,148.88,0.3401623]
[1718571662633,7.7842,148.94,148.88,5.6401623]
[1718571663160,5.3,148.94,148.88,5.6401623]
[1718571663458,2.4842,148.94,148.89,5.3]
[1718571663640,27.657,148.95,148.89,5.3]
[1718571663641,30.1411,148.95,148.89,5.3]
[1718571664463,2.4842,148.94,148.89,5.3]
[1718571665654,7.4526,148.94,148.89,5.3]
[1718571667358,7.4526,148.94,148.88,5.6401623]
[1718571668065,4.9688,148.93,148.88,0.3401623]
[1718571668373,2.4844,148.93,148.88,0.3401623]
[1718571668545,30.143,148.94,148.88,0.3401623]
[1718571668745,30.143,148.94,148.88,5.6401623]
[1718571669156,12.7529,148.94,148.88,5.6401623]
[1718571671695,20.2055,148.94,148.88,5.6401623]
[1718571674873,2.4844,148.93,148.88,5.6401623]
[1718571676578,7.7844,148.93,148.88,0.3401623]
[1718571678361,5.3,148.93,148.88,0.3401623]
[1718571678986,7.7843,148.93,148.88,0.3401623]
[1718571679887,2.4843,148.93,148.88,0.3401623]
[1718571680082,7.7843,148.93,148.88,0.3401623]
[1718571680252,5.3,148.93,148.88,0.3401623]
[1718571680452,7.7844,148.93,148.88,0.3401623]
[1718571682358,22.6898,148.94,148.88,5.6401623]
[1718571682871,30.1424,148.94,148.88,5.6401623]
[1718571683079,2.4843,148.93,148.88,5.6401623]
[1718571683282,30.1424,148.94,148.88,5.6401623]
[1718571683458,2.4843,148.93,148.88,5.6401623]
[1718571683777,30.1424,148.94,148.88,5.6401623]
[1718571684080,2.4843,148.93,148.88,5.6401623]
[1718571684280,7.4519,148.96,148.9,5.3]
[1718571684458,6.9975178,148.97,148.91,5.3]
[1718571684663,12.6529,149.03,148.93,5.3]
[1718571684664,27.651,148.99,148.93,5.3]
[1718571684877,27.651,148.99,148.9,0.17]
[1718571684878,2.4834,148.99,148.94,5.3]
[1718571685066,12.7501,148.99,148.94,5.3]
[1718571685474,20.2002,148.99,148.94,5.3]
[1718571685773,2.4835,148.98,148.94,5.3]
[1718571685972,22.4835,148.98,148.9,0.17]
[1718571686178,22.4835,148.98,148.93,5.3]
[1718571686959,2.4835,148.98,148.93,5.3]
[1718571687170,27.6503,148.99,148.9,0.68]
[1718571687171,12.7502,148.99,148.94,5.3]
[1718571687376,20.2004,148.99,148.94,5.3]
[1718571687593,12.7502,148.99,148.94,5.3]
[1718571687798,7.4502,148.99,148.94,5.3]
[1718571687961,2.4835,148.99,148.94,5.3]
[1718571688160,27.6497,149.0,148.93,16.3]
[1718571688161,30.133,149.0,148.93,16.3]
[1718571688399,10.2666,149.0,148.95,5.3]
[1718571688567,7.4499,149.0,148.95,5.3]
[1718571688757,12.7499,149.0,148.95,5.3]
[1718571688959,7.4499,149.0,148.95,5.3]
[1718571689691,2.4833,149.0,148.96,5.3]
[1718571690189,22.9686,149.07,148.99,5.3]
[1718571690387,2.4826,149.04,149.0,5.3]
[1718571690756,7.4473,149.05,149.0,5.3]
[1718571690994,24.8227,149.06,148.99,0.17]
[1718571691170,4.9645,149.06,149.01,5.3]
[1718571691374,2.4824,149.05,149.01,5.3]
[1718571692885,2.4826,149.04,148.99,6.5147]
[1718571693089,2.4826,149.04,148.99,11.8147]
[1718571693475,2.4825,149.04,148.99,11.8147]
[1718571693674,30.1247,149.05,148.99,11.8147]
[1718571693872,12.7474,149.05,148.99,11.8147]
[1718571694189,14.8945,149.05,149.0,5.3]
[1718571695697,14.8953,149.04,148.98,0.51]
[1718571695996,7.4476,149.04,148.98,0.51]
[1718571696180,2.4825,149.04,148.99,5.3]
[1718571696386,30.1243,149.05,148.99,5.3]
[1718571696978,30.1243,149.05,148.98,0.51]
[1718571697190,12.7474,149.05,149.0,5.3]
[1718571697402,7.7825,149.05,149.0,5.3]
[1718571697703,2.4825,149.05,149.0,5.3]
[1718571698887,2.4825,149.05,149.01,5.3]
[1718571699790,2.4822,149.06,149.01,5.3]
[1718571700280,27.6388,149.07,149.01,5.3]
[1718571700482,12.7464,149.07,149.01,5.3]
[1718571701303,20.1925,149.07,149.01,5.3]
[1718571701599,12.7464,149.07,149.01,5.3]
[1718571702379,7.4464,149.07,148.99,0.17]
[1718571702579,7.4464,149.07,149.02,5.3]
[1718571703610,14.8926,149.07,149.02,5.3]
[1718571704085,7.4464,149.07,149.02,5.3]
[1718571704498,24.8193,149.08,149.02,21.6]
[1718571704696,2.482,149.07,149.02,21.6]
[1718571705102,7.4461,149.07,149.02,21.6]
[1718571705502,14.8923,149.07,149.02,21.6]
[1718571705812,2.4822,149.06,149.02,21.6]
[1718571705978,12.4103,149.07,149.02,21.6]
[1718571706174,2.4822,149.06,149.02,21.6]
[1718571707401,22.3385,149.07,149.02,21.6]
[1718571707626,7.4462,149.07,149.02,21.6]
[1718571707907,2.4822,149.06,149.02,21.6]
[1718571708118,24.8205,149.07,149.02,21.6]
[1718571708316,2.4822,149.06,149.02,21.6]
[1718571708481,2.4822,149.06,149.03,5.3]
[1718571710308,24.8205,149.07,149.03,5.3]
[1718571710602,24.8205,149.07,149.02,21.6]
[1718571711395,2.4822,149.06,149.02,21.6]
[1718571713103,5.3,149.08,149.0,6.5147]
[1718571713405,27.6414,149.05,149.0,6.5147]
[1718571713704,2.4825,149.04,149.0,6.5147]
[1718571714206,30.1239,149.05,149.0,6.5147]
[1718571714681,12.7473,149.05,149.0,6.5147]
[1718571714884,7.7825,149.05,149.0,6.5147]
[1718571715191,2.4825,149.05,149.0,11.8147]
[1718571717788,30.1231,149.06,149.0,11.8147]
[1718571718218,30.1231,149.06,149.0,6.5147]
[1718571718219,2.4824,149.05,149.0,6.5147]
[1718571718389,30.1231,149.06,149.0,11.8147]
[1718571718712,12.7469,149.06,149.0,11.8147]
[1718571720388,7.7823,149.06,149.0,11.8147]
[1718571721096,12.7467,149.06,149.0,11.8147]
[1718571721504,2.4824,149.05,149.0,6.5147]
[1718571721825,7.4471,149.05,149.0,11.8147]
[1718571722126,30.1225,149.06,149.0,11.8147]
[1718571722490,2.4823,149.05,149.0,11.8147]
[1718571724821,7.4471,149.05,149.0,11.8147]
[1718571725030,2.4826,149.04,149.0,6.5147]
[1718571725231,7.4477,149.04,149.0,6.5147]
[1718571725526,4.9659,149.02,148.98,16.1819]
[1718571725735,17.7145,149.02,148.98,16.1819]
[1718571726024,12.7489,149.02,148.98,16.1819]
[1718571726391,2.483,149.01,148.98,16.1819]
[1718571726607,27.6463,149.02,148.98,16.1819]
[1718571726608,30.1293,149.02,148.98,16.1819]
[1718571727014,2.4831,149.01,148.98,16.1819]
[1718571727321,30.1293,149.02,148.98,16.1819]
[1718571727995,12.749,149.02,148.98,16.1819]
[1718571728390,7.783,149.02,148.98,16.1819]
[1718571729325,5.3,149.02,148.98,16.1819]
[1718571729502,10.2658,149.02,148.98,16.1819]
[1718571729718,2.483,149.01,148.96,11.7109]
[1718571730015,12.7492,149.01,148.96,6.4109]
[1718571730501,2.4832,149.0,148.96,6.4109]
[1718571730702,2.4832,149.0,148.95,5.3]
[1718571730703,2.4834,148.99,148.94,15.1632]
[1718571730905,7.7834,148.99,148.94,15.1632]
[1718571731110,5.3,148.98,148.94,15.1632]
[1718571731427,7.7836,148.98,148.94,15.1632]
[1718571731630,20.2015,148.98,148.94,15.1632]
[1718571731829,12.7507,148.98,148.94,15.1632]
[1718571732196,5.3,148.98,148.94,15.1632]
[1718571732407,2.4833,149.0,148.94,15.1632]
[1718571732611,20.0,149.0,148.95,5.3]